fUSD/lending_fUSD_20250416
["ID","MTS","AMOUNT","RATE_DAILY","PERIOD"]
[358191813,1744825843104,-500.0,0.00055056,120]
[358191815,1744825843115,-500.0,0.00055056,120]
[358191817,1744825843124,-500.0,0.00055056,120]
[358191818,1744825843133,-500.0,0.00055056,120]
[358191819,1744825843143,-500.0,0.00055056,120]
[358191820,1744825843153,-500.0,0.00055056,120]
[358191821,1744825843162,-500.0,0.00055056,120]
[358191822,1744825843171,-500.0,0.00055056,120]
[358191823,1744825843181,-500.0,0.00055056,120]
[358191824,1744825843190,-500.0,0.00055056,120]
[358191825,1744825843201,-332.06346704,0.00055056,120]
[358191826,1744825843212,-500.0,0.00055056,120]
[358191827,1744825843222,-500.0,0.00055056,120]
[358191828,1744825843232,-500.0,0.00055056,120]
[358191829,1744825843242,-500.0,0.00055056,120]
[358191830,1744825843252,-993.83,0.00055056,120]
[358191831,1744825843262,-500.0,0.00055056,120]
[358191832,1744825843271,-500.0,0.00055056,120]
[358191833,1744825843281,-815.28,0.00055056,120]
[358191834,1744825843291,-815.28,0.00055056,120]
[358191835,1744825843300,-500.0,0.00055056,120]
[358191836,1744825843310,-154.26,0.00055056,120]
[358191837,1744825843319,-500.0,0.00055056,120]
[358191838,1744825843329,-500.0,0.00055056,120]
[358191839,1744825843343,-645.87,0.00055056,120]
[358191840,1744825843353,-500.0,0.00055056,120]
[358191841,1744825843363,-500.0,0.00055056,120]
[358191842,1744825843373,-500.0,0.00055056,120]
[358191843,1744825843383,-500.0,0.00055056,120]
[358191844,1744825843393,-500.0,0.00055056,120]
[358191845,1744825843403,-500.0,0.00055056,120]
[358191846,1744825843413,-500.0,0.00055056,120]
[358191847,1744825843422,-500.0,0.00055056,120]
[358191848,1744825843432,-500.0,0.00055056,120]
[358191849,1744825843442,-500.0,0.00055056,120]
[358191850,1744825843452,-500.0,0.00055056,120]
[358191851,1744825843462,-500.0,0.00055056,120]
[358191852,1744825843472,-500.0,0.00055056,120]
[358191853,1744825843482,-500.0,0.00055056,120]
[358191854,1744825843492,-500.0,0.00055056,120]
[358191855,1744825843503,-500.0,0.00055056,120]
[358191856,1744825843513,-500.0,0.00055056,120]
[358191857,1744825843524,-500.0,0.00055056,120]
[358191858,1744825843534,-500.0,0.00055056,120]
[358191859,1744825843544,-500.0,0.00055056,120]
[358191860,1744825843554,-500.0,0.00055056,120]
[358191861,1744825843564,-21875.065939,0.00055056,2]
[358191862,1744825843574,-632.10686051,0.00055057,120]
[358191863,1744825843587,-500.0,0.00055065,120]
[358191864,1744825843598,-500.0,0.00055065,120]
[358191865,1744825843608,-500.0,0.00055065,120]
[358191866,1744825843618,-500.0,0.00055065,120]
[358191867,1744825843628,-500.0,0.00055065,120]
[358191868,1744825843638,-500.0,0.00055065,120]
[358191869,1744825843647,-154.05173459,0.00055065,120]
[358191870,1744825843657,-500.0,0.00055065,120]
[358191871,1744825843667,-500.0,0.00055065,120]
[358191872,1744825843677,-500.0,0.00055065,120]
[358191873,1744825843687,-500.0,0.00055065,120]
[358191874,1744825843697,-500.0,0.00055065,120]
[358191875,1744825843707,-500.0,0.00055065,120]
[358191876,1744825843853,-500.0,0.00055065,120]
[358191877,1744825843867,-500.0,0.00055065,120]
[358191878,1744825843877,-500.0,0.00055065,120]
[358191879,1744825843888,-500.0,0.00055065,120]
[358191880,1744825843898,-500.0,0.00055065,120]
[358191881,1744825843907,-500.0,0.00055065,120]
[358191882,1744825843918,-500.0,0.00055065,120]
[358191883,1744825843928,-163.59804431,0.00055065,120]
[358191884,1744825843938,-500.0,0.00055065,120]
[358191885,1744825843948,-500.0,0.00055065,120]
[358191886,1744825843957,-500.0,0.00055065,120]
[358191887,1744825843967,-500.0,0.00055065,120]
[358191888,1744825843977,-500.0,0.00055065,120]
[358191889,1744825843987,-500.0,0.00055065,120]
[358191890,1744825843997,-500.0,0.00055065,120]
[358191891,1744825844006,-500.0,0.00055065,120]
[358191892,1744825844016,-500.0,0.00055065,120]
[358191893,1744825844027,-500.0,0.00055065,120]
[358191894,1744825844037,-500.0,0.00055065,120]
[358191895,1744825844047,-500.0,0.00055065,120]
[358191896,1744825844057,-500.0,0.00055065,120]
[358191897,1744825844069,-500.0,0.00055065,120]
[358191898,1744825844087,-500.0,0.00055065,120]
[358191899,1744825844097,-500.0,0.00055065,120]
[358191900,1744825844107,-500.0,0.00055065,120]
[358191901,1744825844118,-500.0,0.00055065,120]
[358191902,1744825844128,-500.0,0.00055065,120]
[358191903,1744825844139,-500.0,0.00055065,120]
[358191904,1744825844152,-2070.79,0.00055065,120]
[358191905,1744825844163,-500.0,0.00055065,120]
[358191906,1744825844174,-719.25,0.00055065,120]
[358191907,1744825844185,-597.31,0.00055065,120]
[358191908,1744825844195,-351.45,0.00055065,120]
[358191909,1744825844206,-500.0,0.00055065,120]
[358191910,1744825844216,-500.0,0.00055065,120]
[358191911,1744825844225,-500.0,0.00055065,120]
[358191912,1744825844235,-500.0,0.00055065,120]
[358191913,1744825844245,-500.0,0.00055065,120]
[358191914,1744825844255,-500.0,0.00055065,120]
[358191915,1744825844265,-500.0,0.00055065,120]
[358191916,1744825844275,-500.0,0.00055065,120]
[358191917,1744825844284,-591.6,0.00055065,120]
[358191918,1744825844294,-500.0,0.00055065,120]
[358191919,1744825844305,-500.0,0.00055065,120]
[358191920,1744825844315,-500.0,0.00055065,120]
[358191921,1744825844325,-500.0,0.00055065,120]
[358191922,1744825844339,-500.0,0.00055065,120]
[358191923,1744825844349,-500.0,0.00055065,120]
[358191924,1744825844359,-500.0,0.00055065,120]
[358191925,1744825844369,-500.0,0.00055065,120]
[358191926,1744825844379,-1298.38,0.00055065,120]
[358191927,1744825844390,-504.8676897,0.00055065,120]
[358191928,1744825844400,-500.0,0.00055065,120]
[358191929,1744825844409,-500.0,0.00055065,120]
[358191930,1744825844419,-535.07182319,0.00055065,120]
[358191931,1744825844429,-569.54958801,0.00055065,120]
[358191932,1744825844439,-516.47077096,0.00055065,120]
[358191933,1744825844450,-675.13,0.00055065,120]
[358191934,1744825844460,-500.0,0.00055066,120]
[358191935,1744825844470,-500.0,0.00055066,120]
[358191936,1744825844480,-1024.87,0.00055066,120]
[358191937,1744825844490,-500.0,0.00055066,120]
[358191938,1744825844499,-500.0,0.00055066,120]
[358191939,1744825844509,-500.0,0.00055066,120]
[358191940,1744825844519,-500.0,0.00055066,120]
[358191941,1744825844529,-502.1,0.00055066,120]
[358191942,1744825844538,-502.1,0.00055066,120]
[358191943,1744825844558,-546.67,0.00055066,120]
[358191944,1744825844569,-546.67,0.00055066,120]
[358191945,1744825844578,-500.0,0.00055066,120]
[358191946,1744825844594,-500.0,0.00055066,120]
[358191947,1744825844604,-153.88,0.00055066,30]
[358191948,1744825844614,-500.0,0.00055066,120]
[358191949,1744825844624,-500.0,0.00055066,120]
[358191950,1744825844633,-500.0,0.00055066,120]
[358191951,1744825844643,-500.0,0.00055066,120]
[358191952,1744825844652,-500.0,0.00055066,120]
[358191953,1744825844662,-500.0,0.00055066,120]
[358191954,1744825844671,-500.0,0.00055066,120]
[358191955,1744825844681,-643.88053181,0.00055066,120]
[358191956,1744825844691,-500.0,0.00055066,120]
[358191957,1744825844700,-500.0,0.00055066,120]
[358191958,1744825844711,-500.0,0.00055066,120]
[358191959,1744825844721,-500.0,0.00055066,120]
[358191960,1744825844731,-500.0,0.00055066,120]
[358191961,1744825844740,-500.0,0.00055066,120]
[358191962,1744825844750,-500.0,0.00055066,120]
[358191963,1744825844760,-500.0,0.00055066,120]
[358191964,1744825844770,-500.0,0.00055066,120]
[358191965,1744825844780,-500.0,0.00055066,120]
[358191966,1744825844790,-815.28,0.00055066,120]
[358191967,1744825844800,-815.28,0.00055066,120]
[358191968,1744825844810,-500.0,0.00055066,120]
[358191969,1744825844819,-500.0,0.00055066,120]
[358191970,1744825844829,-500.0,0.00055066,120]
[358191971,1744825844843,-500.0,0.00055066,120]
[358191972,1744825844853,-500.0,0.00055066,120]
[358191973,1744825844863,-500.0,0.00055066,120]
[358191974,1744825844873,-559.64794706,0.00055066,120]
[358191975,1744825844882,-500.0,0.00055066,120]
[358191976,1744825844891,-500.0,0.00055066,120]
[358191977,1744825844901,-500.0,0.00055066,120]
[358191978,1744825844911,-500.0,0.00055066,120]
[358191979,1744825844920,-500.0,0.00055066,120]
[358191980,1744825844930,-614.74,0.00055066,120]
[358191981,1744825844939,-500.0,0.00055066,120]
[358191982,1744825844949,-500.0,0.00055066,120]
[358191983,1744825844959,-500.0,0.00055067,120]
[358191984,1744825844969,-500.0,0.00055067,120]
[358191985,1744825844979,-3125.00941985,0.00055093,2]
[358191986,1744825844989,-6250.0188397,0.00055094,2]
[358191987,1744825844999,-3118.6913,0.00055103,2]
[358191988,1744825845009,-2412.82484282,0.00055104,27]
[358191989,1744825845019,-9375.02825955,0.00055125,2]
[358191990,1744825845032,-871.76,0.00055134,120]
[358191991,1744825845042,-500.0,0.00055134,120]
[358191992,1744825845051,-500.0,0.00055135,120]
[358191993,1744825845061,-1024.87,0.00055135,120]
[358191994,1744825845076,-500.0,0.00055135,120]
[358191995,1744825845091,-500.0,0.00055135,120]
[358191996,1744825845101,-502.1,0.00055135,120]
[358191997,1744825845112,-546.67,0.00055135,120]
[358191998,1744825845122,-500.0,0.00055135,120]
[358191999,1744825845132,-500.0,0.00055135,120]
[358192000,1744825845142,-500.0,0.00055135,120]
[358192001,1744825845152,-267.20248234,0.00055135,120]
[358192002,1744825845162,-500.0,0.00055135,120]
[358192003,1744825845171,-500.0,0.00055135,120]
[358192004,1744825845181,-500.0,0.00055135,120]
[358192005,1744825845192,-500.0,0.00055135,120]
[358192006,1744825845204,-540.18,0.00055135,120]
[358192007,1744825845214,-815.28,0.00055135,120]
[358192008,1744825845223,-500.0,0.00055135,120]
[358192009,1744825845233,-500.0,0.00055135,120]
[358192010,1744825845243,-500.0,0.00055135,120]
[358192011,1744825845253,-500.0,0.00055135,120]
[358192012,1744825845263,-500.0,0.00055135,120]
[358192013,1744825845272,-6250.0188397,0.00055172,2]
[358192014,1744825845282,-500.0,0.00055194,120]
[358192015,1744825845292,-500.0,0.00055202,120]
[358192016,1744825845302,-500.0,0.00055202,120]
[358192017,1744825845312,-212.24737235,0.00055202,120]
[358192018,1744825845322,-500.0,0.00055202,120]
[358192019,1744825845334,-500.0,0.00055202,120]
[358192020,1744825845346,-500.0,0.00055202,120]
[358192021,1744825845356,-500.0,0.00055202,120]
[358192022,1744825845366,-500.0,0.00055202,120]
[358192024,1744825845376,-558.49,0.00055202,120]
[358192025,1744825845387,-500.0,0.00055202,120]
[358192026,1744825845397,-500.0,0.00055202,120]
[358192027,1744825845407,-500.0,0.00055202,120]
[358192028,1744825845417,-500.0,0.00055202,120]
[358192029,1744825845427,-500.0,0.00055203,120]
[358192031,1744825845437,-1024.87,0.00055203,120]
[358192033,1744825845446,-500.0,0.00055203,120]
[358192035,1744825845455,-500.0,0.00055203,120]
[358192036,1744825845465,-502.1,0.00055203,120]
[358192037,1744825845475,-546.67,0.00055203,120]
[358192038,1744825845484,-500.0,0.00055203,120]
[358192039,1744825845494,-500.0,0.00055203,120]
[358192040,1744825845503,-500.0,0.00055203,120]
[358192041,1744825845513,-500.0,0.00055203,120]
[358192042,1744825845523,-500.0,0.00055203,120]
[358192043,1744825845533,-500.0,0.00055203,120]
[358192044,1744825845543,-500.0,0.00055203,120]
[358192045,1744825845552,-815.28,0.00055203,120]
[358192046,1744825845562,-468.49,0.00055203,120]
[358192047,1744825845572,-500.0,0.00055203,120]
[358192048,1744825845581,-500.0,0.00055203,120]
[358192050,1744825845595,-500.0,0.00055203,120]
[358192051,1744825845605,-265.28,0.00055203,120]
[358192052,1744825845615,-152.79,0.00055203,120]
[358192053,1744825845625,-500.0,0.00055204,120]
[358192054,1744825845634,-500.0,0.00055204,120]
[358192055,1744825845644,-10120.0029651,0.0005533,3]
[358192056,1744825845656,-500.0,0.00055331,120]
[358192057,1744825845666,-546.83,0.00055339,120]
[358192058,1744825845675,-1431.35,0.00055339,120]
[358192059,1744825845685,-712.39,0.00055339,120]
[358192060,1744825845695,-500.0,0.00055339,120]
[358192061,1744825845705,-500.0,0.00055339,120]
[358192062,1744825845715,-500.0,0.00055339,120]
[358192063,1744825845725,-500.0,0.00055339,120]
[358192064,1744825845735,-500.0,0.0005534,120]
[358192065,1744825845744,-1024.87,0.0005534,120]
[358192066,1744825845754,-500.0,0.0005534,120]
[358192067,1744825845764,-500.0,0.0005534,120]
[358192068,1744825845774,-729.44,0.0005534,120]
[358192069,1744825845784,-500.0,0.0005534,8]
[358192070,1744825845794,-1380.95,0.0005534,120]
[358192071,1744825845804,-500.0,0.0005534,120]
[358192072,1744825845816,-500.0,0.0005534,120]
[358192073,1744825845826,-502.1,0.0005534,120]
[358192074,1744825845839,-546.67,0.0005534,120]
[358192075,1744825845850,-500.0,0.0005534,120]
[358192076,1744825845861,-500.0,0.0005534,120]
[358192077,1744825845872,-339.10188556,0.0005534,120]
[358192078,1744825845882,-500.0,0.0005534,120]
[358192079,1744825845892,-500.0,0.0005534,120]
[358192080,1744825845903,-500.0,0.0005534,120]
[358192081,1744825845913,-326.39,0.0005534,120]
[358192082,1744825845923,-815.28,0.0005534,120]
[358192083,1744825845932,-1419.4,0.0005534,120]
[358192084,1744825845942,-728.46,0.0005534,120]
[358192085,1744825845952,-500.0,0.0005534,120]
[358192086,1744825845963,-500.0,0.0005534,120]
[358192087,1744825845972,-1806.58,0.0005534,120]
[358192088,1744825845982,-500.0,0.0005534,120]
[358192089,1744825845992,-500.0,0.0005534,120]
[358192090,1744825846002,-500.0,0.0005534,120]
[358192091,1744825846012,-290.71645,0.0005534,120]
[358192092,1744825846021,-500.0,0.0005534,120]
[358192093,1744825846032,-500.0,0.0005534,120]
[358192094,1744825846042,-500.0,0.0005534,120]
[358192095,1744825846051,-500.0,0.0005534,120]
[358192096,1744825846061,-500.0,0.0005534,120]
[358192097,1744825846075,-500.0,0.0005534,120]
[358192098,1744825846088,-500.0,0.0005534,120]
[358192099,1744825846098,-500.0,0.0005534,120]
[358192100,1744825846107,-500.0,0.00055341,120]
[358192101,1744825846117,-160.54990921,0.0005539,60]
[358192102,1744825846127,-1075.4338,0.00055399,2]
[358192103,1744825846137,-50600.0148254,0.00055447,3]
[358192104,1744825846148,-10120.0029651,0.00055457,3]
[358192105,1744825846158,-240.73145443,0.00055457,120]
[358192106,1744825846167,-500.0,0.00055457,120]
[358192107,1744825846176,-500.0,0.00055457,120]
[358192108,1744825846186,-645.87,0.00055457,120]
[358192109,1744825846196,-500.0,0.00055457,120]
[358192110,1744825846206,-500.0,0.00055457,120]
[358192111,1744825846216,-79029.92,0.00055457,7]
[358192112,1744825846226,-500.0,0.00055457,120]
[358192113,1744825846236,-500.0,0.00055457,120]
[358192114,1744825846245,-1006.11,0.00055457,2]
[358192116,1744825846255,-500.0,0.00055457,120]
[358192118,1744825846264,-500.0,0.00055457,120]
[358192119,1744825846273,-1091.67,0.00055457,120]
[358192120,1744825846283,-500.0,0.00055457,118]
[358192121,1744825846293,-500.0,0.00055457,120]
[358192122,1744825846303,-500.0,0.00055457,120]
[358192124,1744825846314,-530.23,0.00055457,120]
[358192126,1744825846323,-500.0,0.00055457,120]
[358192127,1744825846336,-500.0,0.00055457,120]
[358192129,1744825846346,-500.0,0.00055457,120]
[358192135,1744825846390,-500.0,0.00055457,120]
[358192137,1744825846400,-500.0,0.00055457,120]
[358192139,1744825846411,-500.0,0.00055457,120]
[358192140,1744825846421,-500.0,0.00055457,120]
[358192141,1744825846430,-500.0,0.00055457,120]
[358192142,1744825846440,-500.0,0.00055457,120]
[358192143,1744825846449,-528.15596525,0.00055457,120]
[358192144,1744825846459,-500.0,0.00055457,120]
[358192145,1744825846468,-1957.73,0.00055457,120]
[358192146,1744825846478,-500.0,0.00055457,120]
[358192147,1744825846488,-500.0,0.00055457,120]
[358192148,1744825846498,-500.0,0.00055457,120]
[358192149,1744825846509,-500.0,0.00055457,120]
[358192150,1744825846519,-500.0,0.00055457,120]
[358192151,1744825846528,-500.0,0.00055457,120]
[358192152,1744825846538,-500.0,0.00055457,120]
[358192153,1744825846547,-500.0,0.00055457,120]
[358192154,1744825846557,-10120.0029651,0.0005546,3]
[358192155,1744825846567,-10120.0029651,0.0005546,3]
[358192156,1744825846578,-10120.0029651,0.00055463,3]
[358192157,1744825846596,-10120.0029651,0.00055467,3]
[358192158,1744825846608,-500.0,0.00055468,120]
[358192159,1744825846619,-546.83,0.00055468,120]
[358192160,1744825846630,-1431.35,0.00055468,120]
[358192161,1744825846641,-712.39,0.00055468,120]
[358192162,1744825846651,-500.0,0.00055468,120]
[358192163,1744825846661,-500.0,0.00055468,120]
[358192164,1744825846672,-500.0,0.00055468,120]
[358192165,1744825846682,-369.06327291,0.00055468,120]
[358192166,1744825846693,-10120.0029651,0.00055468,3]
[358192167,1744825846704,-30360.0088952,0.00055469,3]
[358192168,1744825846714,-266.49662207,0.00055469,7]
[358192169,1744825846725,-10120.0029651,0.00055469,3]
[358192170,1744825846735,-500.0,0.0005547,120]
[358192171,1744825846745,-500.0,0.0005547,120]
[358192172,1744825846755,-50600.0148254,0.0005547,3]
[358192173,1744825846766,-500.0,0.0005547,120]
[358192174,1744825846775,-500.0,0.0005547,120]
[358192175,1744825846785,-500.0,0.0005547,120]
[358192176,1744825846795,-500.0,0.0005547,120]
[358192177,1744825846806,-500.0,0.0005547,120]
[358192178,1744825846817,-558.49,0.0005547,120]
[358192179,1744825846827,-205.64961042,0.0005547,120]
[358192180,1744825846843,-500.0,0.0005547,120]
[358192181,1744825846854,-500.0,0.0005547,120]
[358192182,1744825846864,-500.0,0.0005547,120]
[358192183,1744825846874,-30360.0088952,0.0005547,3]
[358192184,1744825846885,-159.67593157,0.00055473,15]
[358192185,1744825846895,-339.2353216,0.00055473,15]
[358192186,1744825846906,-500.0,0.00055473,2]
[358192187,1744825846916,-209.28944236,0.00055473,15]
[358192188,1744825846926,-500.0,0.00055477,120]
[358192189,1744825846936,-1024.87,0.00055477,120]
[358192190,1744825846947,-500.0,0.00055477,120]
[358192191,1744825846957,-500.0,0.00055477,120]
[358192192,1744825846967,-502.1,0.00055477,120]
[358192193,1744825846976,-546.67,0.00055477,120]
[358192194,1744825846986,-500.0,0.00055477,120]
[358192195,1744825846997,-500.0,0.00055477,120]
[358192196,1744825847008,-500.0,0.00055477,120]
[358192197,1744825847019,-500.0,0.00055477,120]
[358192198,1744825847033,-500.0,0.00055477,120]
[358192199,1744825847043,-993.83,0.00055477,120]
[358192200,1744825847054,-815.28,0.00055477,120]
[358192201,1744825847064,-645.87,0.00055477,120]
[358192202,1744825847079,-500.0,0.00055477,120]
[358192203,1744825847095,-494.04096188,0.00055477,120]
[358192204,1744825847105,-500.0,0.00055477,120]
[358192205,1744825847116,-20240.0059301,0.00055478,3]
[358192206,1744825847126,-500.0,0.00055478,120]
[358192207,1744825847136,-500.0,0.00055478,120]
[358192208,1744825847146,-500.0,0.00055478,120]
[358192209,1744825847156,-618.05971789,0.00055478,120]
[358192210,1744825847166,-500.0,0.00055478,120]
[358192211,1744825847176,-181.07887224,0.00055478,120]
[358192212,1744825847186,-514.64,0.00055478,120]
[358192213,1744825847195,-500.0,0.00055478,120]
[358192214,1744825847205,-500.0,0.00055478,120]
[358192215,1744825847215,-500.0,0.00055478,120]
[358192216,1744825847224,-280.78984577,0.00055478,120]
[358192217,1744825847234,-500.0,0.00055478,120]
[358192218,1744825847243,-500.0,0.00055478,120]
[358192219,1744825847253,-500.0,0.00055478,120]
[358192220,1744825847263,-500.0,0.00055478,120]
[358192221,1744825847272,-500.0,0.00055478,120]
[358192222,1744825847282,-500.0,0.00055478,120]
[358192223,1744825847291,-451.49982182,0.00055478,120]
[358192224,1744825847393,-195.35017818,0.00055478,120]
[358192225,1744825847403,-500.0,0.00055478,120]
[358192226,1744825847413,-500.0,0.00055478,120]
[358192227,1744825847423,-519.79337305,0.00055478,120]
[358192228,1744825847432,-500.0,0.00055478,120]
[358192229,1744825847442,-500.0,0.00055478,120]
[358192230,1744825847451,-500.0,0.00055478,120]
[358192231,1744825847460,-500.0,0.00055478,120]
[358192232,1744825847469,-500.0,0.00055478,120]
[358192233,1744825847478,-500.0,0.00055478,120]
[358192234,1744825847488,-500.0,0.00055478,120]
[358192235,1744825847497,-500.0,0.00055478,120]
[358192236,1744825847507,-500.0,0.00055478,120]
[358192237,1744825847516,-500.0,0.00055478,120]
[358192238,1744825847526,-500.0,0.00055478,120]
[358192239,1744825847536,-500.0,0.00055478,120]
[358192240,1744825847545,-500.0,0.00055478,120]
[358192241,1744825847555,-500.0,0.00055478,120]
[358192242,1744825847564,-500.0,0.00055478,120]
[358192243,1744825847574,-2070.79,0.00055478,120]
[358192244,1744825847591,-500.0,0.00055478,120]
[358192245,1744825847601,-719.25,0.00055478,120]
[358192246,1744825847610,-207.51644877,0.00055478,120]
[358192247,1744825847621,-389.79355123,0.00055478,120]
[358192248,1744825847631,-500.0,0.00055478,120]
[358192249,1744825847641,-500.0,0.00055478,120]
[358192250,1744825847651,-315.85,0.00055478,120]
[358192251,1744825847662,-413.59096564,0.00055478,120]
[358192252,1744825847679,-133.23903436,0.00055478,120]
[358192253,1744825847689,-348.24015995,0.00055478,120]
[358192254,1744825847701,-151.75984005,0.00055478,120]
[358192255,1744825847711,-444.30815895,0.00055478,120]
[358192256,1744825847723,-55.69184105,0.00055478,120]
[358192257,1744825847732,-195.89619747,0.00055478,120]
[358192258,1744825847750,-147.45380253,0.00055478,120]
[358192259,1744825847760,-500.0,0.00055478,120]
[358192260,1744825847770,-591.6,0.00055478,120]
[358192261,1744825847780,-500.0,0.00055478,120]
[358192262,1744825847790,-500.0,0.00055478,120]
[358192263,1744825847800,-1431.35,0.00055478,120]
[358192264,1744825847810,-712.39,0.00055478,120]
[358192265,1744825847821,-500.0,0.00055478,120]
[358192266,1744825847831,-197.4820567,0.00055478,120]
[358192267,1744825847847,-302.5179433,0.00055478,120]
[358192268,1744825847856,-500.0,0.00055478,120]
[358192269,1744825847866,-1298.38,0.00055478,120]
[358192270,1744825847876,-500.0,0.00055478,120]
[358192271,1744825847886,-500.0,0.00055478,120]
[358192272,1744825847895,-500.0,0.00055478,120]
[358192273,1744825847905,-500.0,0.00055478,120]
[358192274,1744825847915,-675.13,0.00055478,120]
[358192275,1744825847924,-233.76423188,0.00055478,3]
[358192276,1744825847936,-2110.025,0.00055478,3]
[358192277,1744825847947,-1497.7826597,0.00055478,3]
[358192278,1744825847959,-2106.33282206,0.00055478,3]
[358192279,1744825848424,-278.66,0.00038421,2]
[358192280,1744825848435,-151.0,0.00038421,2]
[358192281,1744825848446,-500.0,0.00054928,120]
[358192282,1744825848458,-628.94,0.00054929,120]
[358192283,1744825848469,-500.0,0.00054929,120]
[358192284,1744825848481,-338.44,0.00054955,2]
[358192285,1744825848492,-500.0,0.00055054,120]
[358192286,1744825848504,-524.00441962,0.00055055,120]
[358192287,1744825848515,-500.0,0.00055055,120]
[358192288,1744825848527,-500.0,0.00055457,120]
[358192289,1744825848539,-14292.10121646,0.00055478,3]
[358192290,1744825848550,-16482.64449727,0.00055479,3]
[358192291,1744825851204,-545.06408183,0.00055479,3]
[358192292,1744825851490,-545.81,0.00054929,120]
[358192293,1744825851499,-500.0,0.00055055,120]
[358192294,1744825851509,-500.0,0.00055457,120]
[358192295,1744825851519,-226.5858,0.00055479,3]
[358192322,1744826569143,204.78522161,0.00019,2]
[358192345,1744827025360,-172.88644068,0.000251,2]
[358192346,1744827025387,-160.52535,0.00032777,2]
[358192347,1744827025422,-180.0,0.00032877,30]
[358192348,1744827025451,-2009.85982875,0.00035,60]
[358192349,1744827025477,-172.88644066,0.00037977,2]
[358192350,1744827025500,-974.774475,0.00044601,2]
[358192351,1744827025524,-947.93627734,0.00044825,2]
[358192352,1744827025549,-3500.0,0.00044869,2]
[358192353,1744827025573,-350.0,0.00044998,5]
[358192354,1744827025597,-550.0,0.00044999,5]
[358192355,1744827025619,-159.85,0.00044999,120]
[358192356,1744827025647,-821.28118757,0.00045,120]
[358192357,1744827027253,-1178.71881243,0.00045,120]
[358192358,1744827027278,-166.78610798,0.00045,100]
[358192359,1744827027301,-310.76,0.00048782,2]
[358192360,1744827027324,-601.334,0.00049999,88]
[358192361,1744827027346,-450.0,0.00049999,9]
[358192362,1744827027367,-7292.40107959,0.0005,120]
[358192363,1744827028511,-10000.0,0.0005,120]
[358192364,1744827029498,-10000.0,0.0005,120]
[358192365,1744827030482,-2707.59892041,0.0005,120]
[358192366,1744827030507,-152.79,0.0005,120]
[358192367,1744827030531,-161.26783762,0.0005,2]
[358192368,1744827030557,-176.19,0.00050128,2]
[358192369,1744827030581,-6802.15324197,0.0005017,2]
[358192375,1744827031538,-10000.0,0.0005017,2]
[358192386,1744827031710,-1551.0,0.00045004,120]
[358192389,1744827031765,-449.0,0.00045004,120]
[358192390,1744827031775,-379.67032862,0.0005017,2]
[358192391,1744827031818,-4494.91191683,0.0005017,2]
[358192392,1744827031830,-2223.26451258,0.0005017,2]
[358192393,1744827031840,-255.99,0.00050258,2]
[358192394,1744827031849,-150.0,0.000507,2]
[358192395,1744827031859,-172.88644066,0.00050853,2]
[358192396,1744827031870,-828.52,0.00050953,2]